Cogmind - Beta 15 @@@ ROGUE MODE // 2025.10.19 @ 13:26:18 Player: beans Result: Destroyed by S-10 Pest with Light Assault Rifle Performance ------------- Evolutions (0) 0 Regions Visited (3) 600 Robots Destroyed (17) 85 Value Destroyed (311) 311 Prototype IDs (0) 0 Alien Tech Used (0) 0 Bonus (0) 0 TOTAL SCORE: 996 Bonus ------- None Cogmind --------- Core Integrity 0/250 Matter 293/300 Energy 200/200 System Corruption 2% Temperature Cool (0) Movement Rolling (110) Location -10/Subcaves Parts ------- > --- POWER (1) -------- Subdweller Power Source > --- PROPULSION (2) --- Subdweller Monowheel > --- UTILITY (2) ------ Subdweller Optics > --- WEAPON (2) ------- Battle Rifle > --- INVENTORY (5) ---- Particle Gun Peak State ------------ > --- POWER ------------ Subdweller Power Source > --- PROPULSION ------- Subdweller Monowheel > --- UTILITY ---------- Disposable Heat Sink Subdweller Optics > --- WEAPON ----------- Battle Rifle Flamer > --- INVENTORY -------- Particle Gun [Rating: 12] Favorites ----------- Power Subdweller Power Source Engine Subdweller Power Source Power Core Light Nuclear Core Propulsion Aluminum Leg Leg Aluminum Leg Wheel Subdweller Monowheel Utility Subdweller Optics Device Subdweller Optics Weapon Particle Gun Energy Gun Particle Gun Ballistic Gun Battle Rifle Launcher Grenade Launcher Special Weapon Flamer Build | -11 -10 -10 -10 ------- Run | Yrd Mat Min Sub Slots Evolved . | . . . . Power . | . . . . Propulsion . | . . . . Utility . | . . . . Weapon . | . . . . Parts Attached 13 | 3 4 . 6 Power 2 | . 1 . 1 Engine 1 | . . . 1 Core 1 | . 1 . . Reactor . | . . . . Propulsion 3 | 2 . . 1 Treads . | . . . . Leg 2 | 2 . . . Wheel 1 | . . . 1 Hover . | . . . . Flight . | . . . . Utility 2 | . . . 2 Device 2 | . . . 2 Storage . | . . . . Processor . | . . . . Hackware . | . . . . Protection . | . . . . Artifact . | . . . . Weapon 6 | 1 3 . 2 Energy Gun 2 | . 2 . . Energy Cannon . | . . . . Ballistic Gun 2 | 1 . . 1 Ballistic Cannon . | . . . . Launcher 1 | . 1 . . Special Weapon 1 | . . . 1 Impact Weapon . | . . . . Slashing Weapon . | . . . . Piercing Weapon . | . . . . Special Melee Weapon . | . . . . Unidentified Prototypes . | . . . . Parts Lost 7 | . 4 . 3 Power 1 | . . . 1 Propulsion 2 | . 2 . . Utility . | . . . . Weapon 4 | . 2 . 2 Highest Loss Streak 3 | . 3 . 2 To Critical Strikes . | . . . . Average Backups . | . . . 1 Power . | . . . . Propulsion . | . . . . Utility . | . . . . Weapon . | . . . . Tool/Special . | . . . . Unused Backups . | . . . . Power . | . . . . Propulsion . | . . . . Utility . | . . . . Weapon . | . . . . Tool/Special . | . . . . Average Slot Usage (%) 50 | . 46 42 55 Engine 6 | . . . 12 Core 3 | . 3 14 . Leg 8 | . 21 . . Wheel 1 | . . . 3 Device 6 | . . . 13 Energy Gun 11 | . 8 28 9 Ballistic Gun 8 | . 9 . 10 Special Weapon 2 | . . . 4 Peak Build Rating 12 | 3 7 6 12 Average Rating 6 | 1 4 6 8 On Entrance 3 | . 3 6 6 Naked Turns . | . . . . Heaviest Build 13 | 1 9 9 13 Greatest Support 20 | 20 20 3 20 Greatest Overweight (x) 4 | . 2 2 4 Average Overweight (x) . | . . 2 1 Largest Inventory Capacity 5 | 5 5 5 5 Average Capacity 5 | 5 5 5 5 Most Carried 3 | 3 1 . 3 Average Carried . | . . . 1 Final Capacity 5 | 5 5 5 5 Final Carried 1 | . . . 1 Class Distribution -------------------- 80% | Mutant 19% | Scavenger-Mutant Dominant Class ---------------- Mutant | -10/Materials Mutant | -10/Mines Mutant | -10/Subcaves Resources | -11 -10 -10 -10 ----------- Run | Yrd Mat Min Sub Matter Collected 539 | 230 74 . 235 Remotely . | . . . . Salvage Created 371 | . 224 . 147 Parts 30 | . 23 . 7 Haulers Intercepted 1 | . 1 . . Recyclers Shooed 2 | . 2 . . Parts Field Recycled . | . . . . Retrieved Matter . | . . . . Parts Self-Destructed . | . . . . Prevented . | . . . . Kills | -11 -10 -10 -10 ------- Run | Yrd Mat Min Sub Combat Hostiles Destroyed 10 | . 6 . 4 Guns 5 | . 1 . 4 AOE 5 | . 5 . . Classes Destroyed 8 | . 7 . 1 Worker 2 | . 2 . . Builder 2 | . 2 . . Hauler 1 | . 1 . . Recycler 1 | . 1 . . Watcher 1 | . 1 . . Swarmer 4 | . 3 . 1 Grunt 3 | . 3 . . Subdweller 3 | . . . 3 Best Kill Streak 10 | . 10 . 1 Combat Bots Only 5 | . 5 . 1 Max Kills in Single Turn 2 | . 2 . 1 Gunslinging . | . . . . Exploded 2 | . 2 . . Melee . | . . . . Uniques/NPCs Destroyed . | . . . . Combat | -11 -10 -10 -10 -------- Run | Yrd Mat Min Sub Hostile Shots Fired 51 | . 20 . 31 Missed 17 | . 7 . 10 Hits 34 | . 13 . 21 Projectile 34 | . 13 . 21 Damage Taken 862 | . 543 . 319 Core 250 | . 109 . 141 Absorbed by Shields . | . . . . Core Remaining (%) 100 | 100 . . . Volleys Fired 46 | . 29 . 17 Largest 2 | . 2 . 2 Hottest 125 | . 105 . 125 Shots Fired 79 | . 49 . 30 Gun 59 | . 31 . 28 Cannon . | . . . . Launcher 18 | . 18 . . Special 2 | . . . 2 Kinetic 38 | . 24 . 14 Thermal 23 | . 7 . 16 Explosive 18 | . 18 . . Electromagnetic . | . . . . Robot Hit Streak 13 | . 5 . 13 Robot Miss Streak 4 | . 4 . 2 Penetration Max . | . . . . Secondary Targets . | . . . . Shots Hit Robots 44 | . 20 . 24 Core Hits 26 | . 19 . 7 Critical Kills . | . . . . Critical Parts Destroyed . | . . . . Critical Strikes 1 | . . . 1 Burn 1 | . . . 1 Melee Attacks . | . . . . Impact . | . . . . Slashing . | . . . . Piercing . | . . . . Sneak Attacks . | . . . . Combat Hostiles . | . . . . Follow-up Attacks . | . . . . Damage Inflicted 1310 | . 953 . 357 Guns 479 | . 122 . 357 Cannons . | . . . . Explosions 831 | . 831 . . Melee . | . . . . Ramming . | . . . . Kinetic 257 | . 72 . 185 Thermal 222 | . 50 . 172 Explosive 831 | . 831 . . Electromagnetic . | . . . . Impact . | . . . . Slashing . | . . . . Piercing . | . . . . Highest Corruption 2 | . 2 2 2 Average Corruption 2 | . 2 2 2 Corruption Purged . | . . . . Corruption Blocked . | . . . . Effects 10 | . 2 3 5 Message Errors 2 | . . 1 1 Matter Fused 1 | . . 1 . Heat Flow Errors 2 | . 1 1 . Energy Discharges 1 | . . . 1 Parts Rejected 1 | . . . 1 Data Loss (minor) 2 | . . . 2 Data Loss (major) 1 | . 1 . . Overload Shots . | . . . . Overflow Damage 25 | . 25 . . Projectiles . | . . . . Explosions 25 | . 25 . . Melee . | . . . . Knockbacks . | . . . . Impact . | . . . . Kinetic . | . . . . Secondary . | . . . . Self-Inflicted Damage 100 | . 100 . . Shots 5 | . 5 . . Rammed . | . . . . Targets Rammed . | . . . . Kicked . | . . . . Crushed . | . . . . Highest Temperature 287 | . 287 164 28 Average Temperature 68 | . 111 92 10 Received Heat Transfer 108 | . 78 . 30 Siege Activations . | . . . . Martial Activations . | . . . . Shielding Activations . | . . . . Robots Disrupted . | . . . . Combat Hostiles . | . . . . Robots Corrupted . | . . . . Combat Hostiles . | . . . . Parts Fried 2 | . 2 . . Impact Corruptions . | . . . . Robots Melted . | . . . . Combat Hostiles . | . . . . Parts Melted 1 | . . . 1 Heat Transferred 618 | . 112 . 506 Parts Sabotaged . | . . . . Parts Stolen . | . . . . Parts Stripped . | . . . . Power Chain Reactions . | . . . . Alert | -11 -10 -10 -10 ------- Run | Yrd Mat Min Sub Maximum Alert Level . | . . . . Low Security (%) 100 | 100 100 100 . Level 1 . | . . . . Level 2 . | . . . . Level 3 . | . . . . Level 4 . | . . . . Level 5 . | . . . . High Security . | . . . . Max Security . | . . . . Peak Influence 190 | . 190 51 . Initial 51 | . . 51 . Average 59 | . 77 30 . Influence Increases 298 | . 263 . 35 Destroy 0b10 Robot/C 140 | . 120 . 20 Destroy 0b10 Robot/NC 35 | . 35 . . Destroy Leader 24 | . 24 . . Destroy Structure 84 | . 84 . . Lose Combat Pursuer 15 | . . . 15 Influence Decreases 273 | . 130 132 11 Entered New Map 83 | . . 82 1 Time Decay 140 | . 90 50 . Lost Part 50 | . 40 . 10 Squads Dispatched . | . . . . Investigation . | . . . . Extermination . | . . . . Reinforcement . | . . . . Assault . | . . . . Garrison . | . . . . Intercept . | . . . . Searches Triggered . | . . . . Construction Impeded . | . . . . Haulers Reinforced . | . . . . Active Scanning Responses . | . . . . Cargo Convoy Interrupts . | . . . . Stealth | -11 -10 -10 -10 --------- Run | Yrd Mat Min Sub Distress Signals 1 | . 1 . . Communications Jammed . | . . . . Distress Signals . | . . . . Times Spotted 19 | . 10 . 9 Peak Tracking Total 5 | . 4 . 5 Tactical Retreats 1 | . . . 1 Traps | -11 -10 -10 -10 ------- Run | Yrd Mat Min Sub Traps Triggered 2 | . 2 . . Indirectly . | . . . . Trap Hack Attempts . | . . . . Triggered . | . . . . Disarmed . | . . . . Reprogrammed . | . . . . Reused . | . . . . Traps Extracted . | . . . . Installed . | . . . . Triggered . | . . . . Machines | -11 -10 -10 -10 ---------- Run | Yrd Mat Min Sub Machines Disabled . | . . . . Max in Single Turn . | . . . . Machines Repaired . | . . . . Machines Dismantled . | . . . . Machines Sabotaged . | . . . . Overloaded Fab Kills . | . . . . Hacking | -11 -10 -10 -10 --------- Run | Yrd Mat Min Sub Machines Accessed . | . . . . Terminals . | . . . . Fabricators . | . . . . Repair Stations . | . . . . Recycling Units . | . . . . Scanalyzers . | . . . . Garrison Access . | . . . . Total Hacks . | . . . . Successful . | . . . . Failed . | . . . . Catastrophic . | . . . . Database Lockouts . | . . . . Manual . | . . . . Terminals . | . . . . Fabricators . | . . . . Repair Stations . | . . . . Recycling Units . | . . . . Scanalyzers . | . . . . Garrison Access . | . . . . Terminal Hacks . | . . . . Fabricator Hacks . | . . . . Repair Station Hacks . | . . . . Recycling Unit Hacks . | . . . . Scanalyzer . | . . . . Garrison Access Hacks . | . . . . Unauthorized Hacks . | . . . . Terminals . | . . . . Fabricators . | . . . . Repair Stations . | . . . . Recycling Units . | . . . . Scanalyzers . | . . . . Garrison Access . | . . . . Data Cores Recovered . | . . . . Used . | . . . . Hacking Detections . | . . . . Full Trace Events . | . . . . Feedback Events . | . . . . Feedback Blocked . | . . . . Robot Schematics Acquired . | . . . . Robots Built . | . . . . Authchips . | . . . . Time . | . . . . Total Robot Build Rating . | . . . . Part Schematics Acquired . | . . . . Parts Built . | . . . . Authchips . | . . . . Time . | . . . . Total Part Build Rating . | . . . . Parts Repaired . | . . . . Time . | . . . . Parts Recycled . | . . . . Recycled Matter . | . . . . Retrieved Matter . | . . . . Retrieved Components . | . . . . Parts Scanalyzed . | . . . . Part Schematics Acquired . | . . . . Parts Damaged . | . . . . Bothacking | -11 -10 -10 -10 ------------ Run | Yrd Mat Min Sub Used RIF Installer . | . . . . Robots Hacked . | . . . . Non-combat . | . . . . Combat . | . . . . Robot Hacks Applied . | . . . . Relay Couplers Released . | . . . . Fabnet Peak Effective % . | . . . . Robots Rewired . | . . . . Allies Hacked . | . . . . Hacks Repelled . | . . . . Allies | -11 -10 -10 -10 -------- Run | Yrd Mat Min Sub Total Allies . | . . . . Largest Group . | . . . . Highest-Rated Group . | . . . . Highest-Rated Ally . | . . . . Total Orders . | . . . . Ally Attacks . | . . . . Total Damage . | . . . . Kills . | . . . . Allies Corrupted . | . . . . Allies Melted 1 | . . . 1 Intel | -11 -10 -10 -10 ------- Run | Yrd Mat Min Sub Active Infowar (turns) 235 | . . . 235 Optics 235 | . . . 235 Robot Analysis Total . | . . . . Derelict Logs Recovered . | . . . . Drone Launches . | . . . . Drone Recoveries . | . . . . Exploration | -11 -10 -10 -10 ------------- Run | Yrd Mat Min Sub Turns Passed 884 | 43 310 101 430 Spaces Moved 552 | 44 187 68 253 Core 260 | 21 18 68 153 Treads . | . . . . Legs 192 | 23 169 . . Wheels 100 | . . . 100 Hover . | . . . . Flight . | . . . . Fastest Speed 50 | 50 120 150 50 Average Speed 133 | 86 122 150 145 Slowest Speed 250 | 120 150 150 250 Overloaded Moves . | . . . . Propulsion Burnouts . | . . . . Robots Hopped . | . . . . Potential Cave-ins . | . . . . Cave-ins Triggered 2 | . 2 . . Exploration Rate (%) 22 | 4 43 17 26 Regions Visited 3 Branch Regions 2 Pre-discovered Areas . | . . . . Known Exits Taken . | . . . . Unknown Exits Taken 3 | 1 1 1 . Scrap Searched 2 | . . . 2 Spaces Dug . | . . . . Terrain Destroyed 131 | . 131 . . Melee . | . . . . Projectile . | . . . . AOE 131 | . 131 . . Terrain Rammed . | . . . . Walls Destroyed . | . . . . Machines Disabled . | . . . . Actions | -11 -10 -10 -10 --------- Run | Yrd Mat Min Sub Total 623 | 49 223 67 284 Wait 2 | . . . 2 Move 549 | 43 186 67 253 Hop . | . . . . Pick Up 13 | 3 4 . 6 Fast Attach . | . . . . Attach 12 | 3 4 . 5 Detach . | . . . . Swap 1 | . . . 1 Drop . | . . . . Fire 46 | . 29 . 17 Melee . | . . . . Ram . | . . . . Kick . | . . . . Crush . | . . . . Escape Stasis . | . . . . Rewire . | . . . . Trap . | . . . . Miscellaneous . | . . . . Route ------- -11/Scrapyard -10/Materials -10/Mines -10/Subcaves History --------- Turn | Location | Event 5 | -11/Scrapyard | Discovered new exit (range 15) 44 | -11/Scrapyard | Entered Materials 236 | -10/Materials | Crushed by falling debris 242 | -10/Materials | Crushed by falling debris 277 | -10/Materials | Lost 3 parts (1n2w) 310 | -10/Materials | Build established: Mutant 327 | -10/Materials | Discovered new exit (range 7) 354 | -10/Materials | Entered Mines 444 | -10/Mines | Discovered new exit (range 8) 455 | -10/Mines | Entered Subcaves 456 | -10/Subcaves | Approached by a straggling Scientist 468 | -10/Subcaves | Core integrity fell below 50% 652 | -10/Subcaves | Disturbed a concealed Subdweller 692 | -10/Subcaves | Core integrity fell below 20% 885 | -10/Subcaves | Destroyed by S-10 Pest with Light Assault Rifle Last Messages --------------- Acquired Flamer. 6Q-UC1(R) angrily emerges from the Twisted Machinery. 6Q-UC1(R) destroyed. Acquired 23 matter. System corrupted: Component data lost. Acquired Disposable Heat Sink. 9W-ILN(R) suffers critical hit (Burn). 9W-ILN(R) destroyed. Subatomizers dissect the Sub. Optics. Acquired 28 matter. Acquired 10 matter. Subatomizers dissect the Sub. Optics. Acquired Sub. Monowheel. Subatomizers dissect the Sub. Optics. Acquired 10 matter. System corrupted: Component data lost. S-10 Pest destroyed. System corrupted: Disposable Heat Sink rejected. Flamer destroyed. Map ----- +----------------------------------------------------+ | ????????????????### ####### ## #???? | | ??????????????????# ##?????# ## % #???? | | ??????????????????##??????# ### ## #???? | | ??????????????????????? % ##?## ## ##???? | | ?????????????????????# ##???#### ##????? | | ?????????????????????## #????????#### #?????? | | ??????????????????????#####????????????# #?????? | | ??????????????????#####????????????????# ##?????? | | ??????????????????# ##??????????????# #??????? | | ??????????????????# ?????###??????# #??????? | | ????????????#%??### ??## ??????# #??????? | | ???????????## ? ??# ??????## ##?????? | | ??????????## ? #? ????### ##????? | | ??????????# % % ?# ????# ##???? | | ??????????# ? ## ???# ## ##??? | | ??????##??# % ?# % #??# #?# #??? | | ??????# ## % ## % #??## #??# # #??? | | ?????# % % ? #???##??## ###??? | | ????? % #?####### ##???? | | ?????? % ? ### ## #???? | | ??????? % ????????# #???? | | ????????? ????????# #???? | | ???????????? ????#### ####???? | | ??????????????# ???## s ## ##??????? | | ??????????????# ??# ###### ###???????? | | ??????????????# ###@ ###????## ###?????????? | | ???????????????# =%*##???????###???????????? | | ???????????????##### s##??????????????????????? | | ???????????????????#######???????????????????????? | | ?????????????????????????????????????????????????? | | ?????????????????????????????????????????????????? | | ?????????????????????????????????????????????????? | | ?????????????????????????????????????????????????? | | ?????????????????????????????????????????????????? | | ?????????????????????????????????????????????????? | | ?????????????????????????????????????????????????? | | ?????????????????????????????????????????????????? | | ?????????????????????????????????????????????????? | | ?????????????????????????????????????????????????? | | ?????????????????????????????????????????????????? | | ?????????????????????????????????????????????????? | | ?????????????????????????????????????????????????? | | ?????????????????????????????????????????????????? | | | | | | | | | | | | | | | +----------------------------------------------------+ Best States ------------- Heat Dissipation 25 Coolant Potential 50 Energy Generation 15 Energy Capacity 200 Matter Stores 300 Matter Capacity 300 Sight Range 21 Terrain Scan Density 10 Evasion (%) 55 Item Schematics ----------------- None Robot Schematics ------------------ None Fabricated ------------ Nothing Repaired ---------- Nothing Alien Tech Used ----------------- None Achievements -------------- None Challenges ------------ None Game ------ Seed ArcFissionRigger Manual? 0 Play Time 00:10:04 Cumulative 191.9 hours Start 2025.10.19 @ 07:51:46 End 2025.10.19 @ 13:26:18 Sessions 3 Manual Loads 0 Difficulty Rogue Special Mode None Game No. 569 Rogue 568 Adventurer 1 Explorer 0 Win Type - Total 0 Types 0/0/0/0/0/0/0/0/0/0 Lore% 63 Gallery% 60 Achievement% 48 Wizard Run 0 Options --------- Layout 1 ASCII 0 Keyboard 0 Movement Mouse Keybinds 0 Fullscreen 1 Font 24/Smallcaps Map View 50x35 Zoom Use 0% Tactical HUD 0 Map Filters NONE Filters NONE Steam 1 RUN: 18e4a479-278f-4cb8-bdd0-43bd3183fd89